Cogmind - Beta 15 @@@ ROGUE MODE // 2025.09.28 @ 09:31:23 Player: Dosh Result: Destroyed by X-82 Rainmaker with Heavy Flak Cannon Performance ------------- Evolutions (6) 3000 Regions Visited (21) 4200 Robots Destroyed (359) 1795 Value Destroyed (14192) 14192 Prototype IDs (34) 680 Alien Tech Used (0) 0 Bonus (6822) 6822 TOTAL SCORE: 30689 Bonus ------- High Alert Combat Kills 1245 Follower Combat Kills 2277 Awakened Behemoth Slayer 1000 Entered Garrisons 200 Network Hubs Disabled 400 Met Data Miner 300 Acquired ECA 300 Built Enhanced Grunts 300 A7 Reached Mainframe 300 Met R17 at Cetus 500 Cogmind --------- Core Integrity 0/1150 Matter 239/300 Energy 100/100 System Corruption 19% Temperature Cool (0) Movement Rolling (95) Location -4/Factory Parts ------- > --- POWER (2) -------- (None) > --- PROPULSION (6) --- Armored Huge Wheel Centrium Wheel > --- UTILITY (8) ------ Advanced Visual Processing Unit Experimental Signal Interpreter > --- WEAPON (3) ------- (None) > --- INVENTORY (5) ---- (None) Peak State ------------ > --- POWER ------------ Quantum Reactor Quantum Reactor > --- PROPULSION ------- Armored Medium Treads Heavy Treads Centrium Heavy Treads > --- UTILITY ---------- High-capacity Storage Unit Experimental Core Analyzer Microactuators Microactuators Hardened Heavy Armor Plating Experimental System Shield > --- WEAPON ----------- Advanced KE Penetrator Phasing Sabre CR-A16's Behemoth Slayer > --- INVENTORY -------- Quantum Reactor Armored Medium Treads Armored Medium Treads Thunder Leg Enhanced Flexi-carbon Leg Advanced Cooling System Advanced Energy Well Experimental Signal Interpreter Seismic Detector Improved Transmission Jammer Centrium Medium Armor Plating Improved Hacking Suite Authchip [R/NC] Improved Trap Extractor Advanced Plasma Cannon Advanced KE Penetrator Mini Smartbomb Launcher Ripper Lance Lance [Rating: 124] Favorites ----------- Power F-cell Engine Engine F-cell Engine Power Core Neutrino Core Reactor Quantum Reactor Propulsion Improved Medium Treads Treads Improved Medium Treads Leg Enhanced Flexi-carbon Leg Wheel Armored Huge Wheel Hover Unit Improved Airjet Utility Microactuators Device Microactuators Storage High-capacity Storage Unit Processor Experimental Optical Array Hackware Experimental System Shield Protection Layered Medium Armor Plating Weapon Scythe Energy Gun Heavy Particle Gun Energy Cannon Plasma Cannon Ballistic Gun Advanced KE Penetrator Ballistic Cannon Gauss Cannon Launcher Improved Proton Missile Launcher Impact Weapon Powered Hammer Slashing Weapon Scythe Piercing Weapon Lance Build | -11 -10 -10 -10 -9 -8 -8 -7 -7 -7 -6 -6 -6 -6 -6 -5 -5 -5 -5 -5 -5 -4 ------- Run | Yrd Mat Min Exi Min Mat Gar Fac Low Dat Pro Fac Low Low Zio Pro Fac Ext Cet Arc Hub Fac Slots Evolved 12 | . . . . . 4 . 2 . . . 2 . . . . 2 . . . . 2 Power 1 | . . . . . . . . . . . 1 . . . . . . . . . . Propulsion 4 | . . . . . 2 . 1 . . . . . . . . . . . . . 1 Utility 6 | . . . . . 2 . 1 . . . 1 . . . . 1 . . . . 1 Weapon 1 | . . . . . . . . . . . . . . . . 1 . . . . . Parts Attached 206 | 6 9 2 . 2 24 14 14 1 10 5 26 10 8 12 2 16 9 5 7 4 20 Power 26 | 1 1 1 . . 2 1 3 . 1 2 4 2 . 1 . . 1 2 . 1 3 Engine 14 | 1 1 1 . . 2 . 3 . . . 3 2 . 1 . . . . . . . Core 4 | . . . . . . 1 . . . . 1 . . . . . 1 . . . 1 Reactor 8 | . . . . . . . . . 1 2 . . . . . . . 2 . 1 2 Propulsion 62 | 2 1 . . . 9 5 4 . 5 1 6 4 6 . . 6 4 . 1 . 8 Treads 25 | 2 1 . . . 6 . . . . . . 3 3 . . 5 4 . 1 . . Leg 27 | . . . . . 2 5 1 . 5 1 5 1 2 . . 1 . . . . 4 Wheel 9 | . . . . . 1 . 3 . . . . . 1 . . . . . . . 4 Hover 1 | . . . . . . . . . . . 1 . . . . . . . . . . Flight . | . . . . . . . . . . . . . . . . . . . . . . Utility 72 | 1 5 . . . 7 6 3 1 3 . 12 2 1 7 2 7 2 1 5 2 5 Device 30 | . 3 . . . 1 4 1 . 1 . 5 . 1 2 1 3 1 . 4 . 3 Storage 6 | 1 2 . . . 1 . . . 1 . . . . . . . . . . . 1 Processor 9 | . . . . . . . . . . . 2 . . 4 . . . . 1 1 1 Hackware 5 | . . . . . . . . . . . 3 . . 1 . 1 . . . . . Protection 22 | . . . . . 5 2 2 1 1 . 2 2 . . 1 3 1 1 . 1 . Artifact . | . . . . . . . . . . . . . . . . . . . . . . Weapon 46 | 2 2 1 . 2 6 2 4 . 1 2 4 2 1 4 . 3 2 2 1 1 4 Energy Gun 3 | . . . . . 2 . . . . . . . . . . . . . . . 1 Energy Cannon 10 | . 2 . . . 2 2 . . 1 . . . . 1 . 1 1 . . . . Ballistic Gun 6 | 2 . . . . . . . . . . . . . . . . . 1 1 . 2 Ballistic Cannon 4 | . . . . 2 . . . . . . 1 . . 1 . . . . . . . Launcher 8 | . . 1 . . 1 . . . . 2 . 1 1 . . 1 . . . . 1 Special Weapon . | . . . . . . . . . . . . . . . . . . . . . . Impact Weapon 4 | . . . . . 1 . 1 . . . 2 . . . . . . . . . . Slashing Weapon 7 | . . . . . . . 3 . . . 1 1 . 2 . . . . . . . Piercing Weapon 4 | . . . . . . . . . . . . . . . . 1 1 1 . 1 . Special Melee Weapon . | . . . . . . . . . . . . . . . . . . . . . . Unidentified Prototypes 21 | . . . . . 2 . 1 . 4 . 3 . . 5 . 2 . 2 1 . 1 Corrupted Parts 5 | . . . . . . . . . . 1 2 . . . . . . . 1 . 1 System Corruption 41 | . . . . . . . . . . 10 19 . . . . . . . 2 . 10 Parts Lost 83 | . 3 . . . 3 9 1 . 2 . 18 5 8 1 1 1 2 . . 10 19 Power 15 | . 1 . . . 1 2 . . . . 3 2 1 . . . 1 . . 1 3 Propulsion 27 | . 1 . . . 1 1 1 . 2 . 5 3 2 . 1 1 . . . 3 6 Utility 30 | . 1 . . . 1 3 . . . . 9 . 5 1 . . 1 . . 4 5 Weapon 11 | . . . . . . 3 . . . . 1 . . . . . . . . 2 5 Highest Loss Streak 11 | . 3 . . . 1 3 1 . 1 . 8 5 4 1 1 1 1 . . 10 11 To Critical Strikes 2 | . . . . . . . . . . . 1 . 1 . . . . . . . . Average Backups 17 | . 7 11 18 18 18 19 19 20 19 20 18 19 18 18 19 18 18 18 19 19 4 Power 1 | . . . 1 1 1 1 2 1 1 1 1 2 1 . . . 1 1 1 . . Propulsion 1 | . . 1 4 3 2 4 2 . . . 1 . 1 1 . . . 3 3 3 1 Utility 8 | . 2 4 6 7 9 11 9 10 11 12 8 8 7 8 10 11 11 9 8 8 . Weapon 6 | . 4 5 7 7 5 2 4 7 7 6 7 8 7 9 8 6 5 5 6 5 1 Tool/Special . | . . . . . . . . . . . . . . . . . . . . . . Unused Backups 50 | . . 1 . 3 9 3 3 1 5 1 1 . 3 2 . 4 2 3 3 6 . Power 7 | . . . . . 1 . . 1 . . . . 2 . . . 1 1 1 . . Propulsion 9 | . . . . 2 1 2 1 . . . . . . . . . . 1 . 2 . Utility 20 | . . 1 . . 1 . 1 . 5 . 1 . 1 1 . 1 1 1 2 4 . Weapon 14 | . . . . 1 6 1 1 . . 1 . . . 1 . 3 . . . . . Tool/Special . | . . . . . . . . . . . . . . . . . . . . . . Average Slot Usage (%) 92 | . 97 100 100 100 93 99 95 84 83 99 93 96 95 87 97 97 97 87 83 79 47 Engine 8 | . 13 14 14 14 8 6 6 7 4 . 3 12 11 11 13 11 5 . . . . Reactor 2 | . . . . . . . . . 2 6 9 . . . . . . 6 11 10 2 Treads 18 | . 28 28 28 28 21 12 . . . . . 17 21 33 30 26 27 23 18 16 . Leg 8 | . . . . . 5 22 28 . 15 38 31 12 7 . . . . . . . 6 Wheel 1 | . . . . . 4 . 5 23 9 . . . 3 . . . . . . . 8 Device 12 | . 11 14 14 14 9 18 22 23 12 15 18 13 11 6 6 11 15 11 12 10 8 Storage 7 | . 14 14 14 14 9 9 7 7 7 7 6 6 6 6 6 5 5 5 5 4 3 Processor 2 | . . . . . . . . . . . 1 . . 6 13 4 . . 3 4 8 Hackware 4 | . . . . . . . . . . . 2 13 11 7 7 11 11 11 5 4 . Protection 6 | . . . . . 17 8 7 7 14 15 6 5 5 . 4 4 5 5 5 5 . Energy Cannon 5 | . 9 27 28 9 11 14 1 . . . . . . 1 . 1 . 5 . . . Ballistic Gun 1 | . 18 . . . . . . . . . . . . . . . . . . 2 5 Ballistic Cannon 1 | . . . . 18 1 . . . . . . . . . . . . . . . . Slashing Weapon 6 | . . . . . . . 8 15 14 14 6 12 12 11 12 13 9 2 4 4 . Piercing Weapon 1 | . . . . . . . . . . . . . . . . 1 5 7 11 7 . Peak Build Rating 124 | 6 10 14 13 20 42 46 51 47 70 74 90 69 69 79 75 100 100 113 119 124 101 Average Rating 60 | 4 7 10 13 18 34 38 46 47 54 68 78 67 59 60 74 91 94 105 115 117 63 On Entrance 51 | . 6 10 13 13 20 33 43 47 47 67 74 67 69 47 75 73 92 96 109 119 11 Naked Turns 9 | . . . . . . . . . . . . . . . . . . . . 9 . Heaviest Build 125 | 13 52 56 52 59 74 70 68 63 80 80 93 83 84 88 83 103 103 125 116 120 64 Greatest Support 177 | 40 40 40 40 40 85 83 77 66 127 132 132 91 140 140 140 148 157 157 177 177 84 Greatest Overweight (x) 8 | . 1 1 1 1 2 1 1 . 2 . 1 2 8 . . . . . . 1 3 Average Overweight (x) . | . . 1 1 1 1 . . . . . . . 3 . . . . . . . . Largest Inventory Capacity 20 | 8 20 20 20 20 20 20 20 20 20 20 20 20 20 20 20 20 20 20 20 20 10 Average Capacity 19 | 6 16 20 20 20 20 20 20 20 20 20 20 20 19 20 20 20 20 20 20 19 8 Most Carried 20 | 2 10 18 18 20 20 20 20 20 20 20 20 20 20 20 20 20 20 20 20 20 7 Average Carried 18 | . 7 11 18 19 19 19 19 19 19 19 18 19 19 19 19 19 19 19 19 19 5 Final Capacity 20 | 8 20 20 20 20 20 20 20 20 20 20 20 20 20 20 20 20 20 20 20 5 5 Final Carried 20 | 2 9 18 18 20 20 20 20 20 20 20 20 20 20 20 20 20 19 20 20 5 . Class Distribution -------------------- 28% | Mutant 20% | Hacker-Gladiator 16% | Scavenger-Gladiator 11% | Scavenger-Mutant 9% | Commander-Gladiator 5% | Gladiator Dominant Class ---------------- Mutant | -10/Materials Mutant | -10/Mines Mutant | -10/Exiles Mutant | -9/Mines Mutant | -8/Materials Scavenger-Mutant | -8/Garrison Scavenger-Gladiator | -7/Factory Gladiator | -7/Lower Caves Gladiator | -7/Data Miner Scavenger-Gladiator | -6/Proximity Caves Scavenger-Gladiator | -6/Factory Hacker-Gladiator | -6/Lower Caves Hacker-Gladiator | -6/Lower Caves Scavenger-Gladiator | -6/Zion Trapper-Gladiator | -5/Proximity Caves Hacker-Gladiator | -5/Factory Hacker-Gladiator | -5/Extension Commander-Mutant | -5/Cetus Commander-Gladiator | -5/Archives Commander-Gladiator | -5/Hub_04(d) Scavenger-Mutant | -4/Factory Resources | -11 -10 -10 -10 -9 -8 -8 -7 -7 -7 -6 -6 -6 -6 -6 -5 -5 -5 -5 -5 -5 -4 ----------- Run | Yrd Mat Min Exi Min Mat Gar Fac Low Dat Pro Fac Low Low Zio Pro Fac Ext Cet Arc Hub Fac Matter Collected 6162 | 180 655 72 . 44 540 404 155 10 180 238 619 189 515 175 397 372 280 176 173 235 553 Remotely . | . . . . . . . . . . . . . . . . . . . . . . Salvage Created 15812 | . 831 210 . 49 1587 1211 325 132 400 487 3146 621 743 . 531 1562 1049 160 493 1213 1062 Parts 681 | . 49 13 . 6 87 51 27 10 15 14 95 19 25 . 21 87 32 9 33 36 52 Haulers Intercepted 8 | . 2 . . . 4 . . . . . 1 . . . . 1 . . . . . Recyclers Shooed 5 | . . 1 . . 2 . . . . . 1 . . . . . . . . . 1 Parts Field Recycled . | . . . . . . . . . . . . . . . . . . . . . . Retrieved Matter . | . . . . . . . . . . . . . . . . . . . . . . Parts Self-Destructed 79 | . . . . . . . . 6 . 7 . 15 27 . 24 . . . . . . Prevented 7 | . . . . . . . . . . 7 . . . . . . . . . . . Kills | -11 -10 -10 -10 -9 -8 -8 -7 -7 -7 -6 -6 -6 -6 -6 -5 -5 -5 -5 -5 -5 -4 ------- Run | Yrd Mat Min Exi Min Mat Gar Fac Low Dat Pro Fac Low Low Zio Pro Fac Ext Cet Arc Hub Fac Combat Hostiles Destroyed 269 | . 16 5 . 2 35 35 6 3 4 8 39 5 20 . 15 28 10 2 1 17 18 Melee 90 | . . . . . . 1 6 3 4 2 14 5 4 . 3 28 9 . . 11 . Guns 35 | . 15 . . . 12 . . . . . . . . . . . . . 1 . 7 Cannons 42 | . 1 2 . 1 20 16 . . . . . . . . . . . 2 . . . AOE 80 | . . 3 . 1 3 15 . . . 5 10 . 15 . 12 . . . . 5 11 Classes Destroyed 22 | . 7 1 . 1 2 3 . 2 . . 2 2 1 . 1 . . . . . . Worker 16 | . 2 . . . 1 . 2 . . . 5 . . . . 3 . . . 1 2 Builder 14 | . . . . . 1 . 2 . . . 3 . . . . 2 . . . 1 5 Tunneler 6 | . . 2 . 1 . . . . . . 1 . . . . 1 . . . . 1 Hauler 8 | . 2 . . . 4 . . . . . 1 . . . . 1 . . . . . Recycler 11 | . 1 . . . 3 . . . . . 1 . . . . 1 2 . . 2 1 Minesweeper 2 | . . . . . . . . . . . . . 1 . 1 . . . . . . Mechanic 3 | . . . . . . . . . . . . . . . 1 1 . . . 1 . Operator 15 | . 1 . . . 2 . . . . . 2 . . . . . 1 . 9 . . Watcher 12 | . 2 . . . 4 . 1 . . . . . . . . . 2 1 . 1 1 Swarmer 58 | . 3 . . . 17 7 4 . . . . . 1 . 5 13 . . . 3 5 Grunt 121 | . 13 5 . 1 11 20 . . . 5 24 3 13 . 5 2 4 . . 6 9 Brawler 8 | . . . . . . . . . . . 1 . 2 . 3 . . . . 2 . Duelist 9 | . . . . 1 . 1 . . . 1 3 1 1 . . . . . . 1 . Protector 1 | . . . . . . . . . . . 1 . . . . . . . . . . Sentry 24 | . . . . . 7 1 1 1 . 1 2 . 1 . . 3 3 . 1 3 . Demolisher 1 | . . . . . . 1 . . . . . . . . . . . . . . . Specialist 2 | . . . . . . 2 . . . . . . . . . . . . . . . Hunter 9 | . . . . . . . . 1 . 1 3 . 1 . 1 1 . . . . 1 Programmer 25 | . . . . . . 3 1 . . . 5 . . . 1 9 2 . . 1 3 Behemoth 4 | . . . . . . . . . . . . 1 1 . . . 1 . . 1 . Cetus Guard 2 | . . . . . . . . . . . . . . . . . . 2 . . . Enhanced Grunt 5 | . . . . . . . . . 4 . . . . . . . . . 1 . . Samaritan 4 | . . . . . . . . . . . . 4 . . . . . . . . . Thief 1 | . . . . . . . . 1 . . . . . . . . . . . . . Savage 1 | . . . . . . . . . . . . . . . . . . . . 1 . Butcher 1 | . . . . . . 1 . . . . . . . . . . . . . . . Best Kill Streak 11 | . 3 3 . 2 6 6 5 1 1 4 7 4 11 . 11 3 4 2 5 7 9 Combat Bots Only 11 | . 3 3 . 2 5 6 3 1 1 4 6 4 11 . 7 3 3 1 1 5 5 Max Kills in Single Turn 9 | . 1 2 . 1 2 4 1 1 1 2 3 1 2 . 2 1 1 1 1 3 9 Gunslinging . | . . . . . . . . . . . . . . . . . . . . . . Exploded 5 | . . 2 . 1 2 4 . . . 2 3 . 2 . 2 . . . . 2 5 Melee 1 | . . . . . . 1 1 1 1 1 1 1 1 . 1 1 1 . . 1 . Uniques/NPCs Destroyed . | . . . . . . . . . . . . . . . . . . . . . . Combat | -11 -10 -10 -10 -9 -8 -8 -7 -7 -7 -6 -6 -6 -6 -6 -5 -5 -5 -5 -5 -5 -4 -------- Run | Yrd Mat Min Exi Min Mat Gar Fac Low Dat Pro Fac Low Low Zio Pro Fac Ext Cet Arc Hub Fac Hostile Shots Fired 1950 | . 79 14 . 2 178 122 43 16 16 98 244 47 144 . 62 191 109 10 9 178 388 Missed 565 | . 24 6 . . 42 27 5 8 5 32 61 11 41 . 19 46 35 4 2 46 151 Hits 1385 | . 55 8 . 2 136 95 38 8 11 66 183 36 103 . 43 145 74 6 7 132 237 Melee 34 | . . . . . . . . 3 . 3 12 5 1 . 3 . . . . 7 . Projectile 1351 | . 55 8 . 2 136 95 38 5 11 63 171 31 102 . 40 145 74 6 7 125 237 AOE 5 | . . . . . . 1 . . . . . . . . . 2 . . . 1 1 Critical Strikes 66 | . 2 . . . 5 1 1 . . 1 11 2 6 . 1 14 . 2 . 8 12 Part Disruptions 2 | . . . . . . . . . . . . . . . . 1 1 . . . . Damage Taken 22260 | . 701 99 . 23 1574 1476 499 95 497 859 2710 853 1517 . 936 1463 1232 151 192 3475 3908 Core 3546 | . 160 29 . . 178 157 86 12 137 106 219 128 169 . 125 105 133 13 25 614 1150 Absorbed by Shields 2345 | . . . . . . 54 . . . . . . . . . 1169 546 69 . . 507 Ignored by Resistances 549 | . . . . . . . . . . 30 457 6 56 . . . . . . . . Regen/Repaired (Parts) 1929 | . . . . . 113 . . . . . 253 . . 1080 . 483 . . . . . Core Remaining (%) 41 | 100 . . . 24 . 39 . . . 51 . . . . 24 . . . . 11 . Volleys Fired 478 | . 82 14 . 2 127 75 . . . 13 29 . 29 . 14 5 1 14 8 12 53 Largest 3 | . 2 2 . 2 2 2 . . . 1 1 . 1 . 1 1 1 2 1 1 3 Hottest 196 | . 120 120 . 80 160 160 . . . 43 43 . 39 . 39 98 98 196 35 98 120 Shots Fired 781 | . 164 24 . 4 246 129 . . . 13 28 . 27 . 14 5 1 28 8 12 78 Gun 355 | . 156 . . . 112 . . . . . . . . . . . . . 8 6 73 Cannon 309 | . 8 20 . 4 131 111 . . . . . . . . . 5 1 28 . 1 . Launcher 117 | . . 4 . . 3 18 . . . 13 28 . 27 . 14 . . . . 5 5 Special . | . . . . . . . . . . . . . . . . . . . . . . Kinetic 285 | . 156 . . 4 40 . . . . . . . . . . . . . 8 6 71 Thermal 377 | . 8 20 . . 203 111 . . . . . . . . . 5 1 28 . 1 . Explosive 86 | . . 4 . . 3 18 . . . 10 . . 27 . 14 . . . . 5 5 Electromagnetic 33 | . . . . . . . . . . 3 28 . . . . . . . . . 2 Robot Hit Streak 17 | . 15 9 . 3 17 13 . . . 11 12 . 10 . 4 . . 6 7 5 5 Robot Miss Streak 6 | . 4 1 . 1 6 4 . . . . 2 . 1 . 1 . 1 2 1 1 4 Penetration Max 1 | . . . . . 1 . . . . . . . . . . . . . . . 1 Secondary Targets 3 | . 3 . . . . . . . . . . . . . . . . . . . . Max Gunslinging Chain 1 | . 1 . . . . . . . . . . . . . . . . . . . . Shots Hit Robots 933 | . 100 15 . 3 141 69 24 9 31 24 116 42 40 . 22 94 55 20 21 59 48 Core Hits 619 | . 45 14 . 3 63 54 11 3 16 16 70 17 52 . 40 40 18 10 9 46 92 Critical Kills 7 | . . . . . . . . . . . . . . . . . . . 2 . 5 Critical Parts Destroyed 17 | . 1 . . . . 3 . . . . 9 . . . . . . . 1 . 3 Critical Strikes 95 | . 1 . . 1 5 3 3 . 9 1 20 10 3 . 2 9 8 . 3 9 8 Burn 2 | . . . . . 2 . . . . . . . . . . . . . . . . Destroy 12 | . 1 . . . . . . . . . . . . . . . . . 3 . 8 Blast 4 | . . . . 1 3 . . . . . . . . . . . . . . . . Smash 12 | . . . . . . 3 . . . . 9 . . . . . . . . . . Sever 62 | . . . . . . . 3 . 9 1 11 10 3 . 2 9 8 . . 6 . Impale 3 | . . . . . . . . . . . . . . . . . . . . 3 . Melee Attacks 713 | . . . . . 2 17 41 11 62 21 145 54 26 2 19 149 73 . 17 74 . Impact 90 | . . . . . 2 17 2 . . . 69 . . . . . . . . . . Slashing 581 | . . . . . . . 39 11 62 21 76 54 26 2 19 146 59 . 11 55 . Piercing 42 | . . . . . . . . . . . . . . . . 3 14 . 6 19 . Sneak Attacks 57 | . . . . . . . 4 . 1 . 9 7 1 . 1 14 4 . 13 3 . Combat Hostiles . | . . . . . . . . . . . . . . . . . . . . . . Follow-up Attacks 86 | . . . . . . . 2 1 7 5 15 8 2 . 3 16 13 . 3 11 . Damage Inflicted 41152 | . 1104 449 . 214 3562 3198 905 280 998 1489 6225 1528 3337 . 2473 4429 2346 653 1579 3200 3183 Guns 4067 | . 1002 . . . 1393 . . . . . . . . . . . . . 180 78 1414 Cannons 4420 | . 87 261 . 91 1906 1422 . . . . . . . . . . . 653 . . . Explosions 12633 | . . 166 . 111 240 1393 . . . 918 2588 . 2704 . 1813 . . . . 1103 1597 Melee 19738 | . . . . . . 333 905 280 998 571 3637 1528 633 . 660 4429 2346 . 1399 2019 . Ramming 294 | . 15 22 . 12 23 50 . . . . . . . . . . . . . . 172 Kinetic 3523 | . 1002 . . 91 789 . . . . . . . . . . . . . 180 78 1383 Thermal 5498 | . 87 261 . 111 2510 1422 . . . . 454 . . . . . . 653 . . . Explosive 9696 | . . 166 . . 240 1393 . . . 680 . . 2704 . 1813 . . . . 1103 1597 Electromagnetic 2403 | . . . . . . . . . . 238 2134 . . . . . . . . . 31 Impact 2166 | . . . . . . 333 54 . . . 1779 . . . . . . . . . . Slashing 16702 | . . . . . . . 851 280 998 571 1858 1528 633 . 660 4399 2040 . 1179 1705 . Piercing 870 | . . . . . . . . . . . . . . . . 30 306 . 220 314 . Highest Corruption 31 | . . . . . 2 2 . . . 10 31 27 27 27 . 15 16 16 16 8 19 Average Corruption 16 | . . . . . 2 1 . . . 10 11 27 27 27 . 9 15 16 7 4 14 Corruption Purged 25 | . . . . . . 3 . . . . 4 . . . . . . . 18 . . Corruption Blocked . | . . . . . . . . . . . . . . . . . . . . . . Effects 356 | . . . . . . . . . . . 48 57 68 2 . 53 73 25 15 2 13 Message Errors 82 | . . . . . . . . . . . 9 19 14 . . 11 18 3 3 . 5 Matter Fused 85 | . . . . . . . . . . . 13 13 15 1 . 10 17 8 5 1 2 Heat Flow Errors 41 | . . . . . . . . . . . 3 7 8 . . 7 11 2 2 . 1 Energy Discharges 71 | . . . . . . . . . . . 9 10 18 1 . 11 12 7 3 . . Parts Rejected 3 | . . . . . . . . . . . 1 . 1 . . . 1 . . . . Parts Fused 2 | . . . . . . . . . . . 2 . . . . . . . . . . Data Loss (minor) 45 | . . . . . . . . . . . 6 6 5 . . 9 10 2 2 1 4 Data Loss (major) 8 | . . . . . . . . . . . 2 1 2 . . . 2 1 . . . Misfires 1 | . . . . . . . . . . . 1 . . . . . . . . . . Alerts 10 | . . . . . . . . . . . . 1 1 . . 5 1 2 . . . Misdirections 3 | . . . . . . . . . . . . . 2 . . . 1 . . . . Weapon Failures 5 | . . . . . . . . . . . 2 . 2 . . . . . . . 1 Overload Shots . | . . . . . . . . . . . . . . . . . . . . . . Overflow Damage 2865 | . . 6 . 34 85 246 40 30 . 117 719 101 28 . 21 422 216 . 589 174 37 Projectiles 91 | . . 6 . . 85 . . . . . . . . . . . . . . . . Explosions 262 | . . . . 34 . 64 . . . . 68 . 28 . 12 . . . . 19 37 Melee 2512 | . . . . . . 182 40 30 . 117 651 101 . . 9 422 216 . 589 155 . Knockbacks 30 | . . . . 1 9 3 . . . . 13 . . . . . . . . . 4 Impact 20 | . . . . . . 3 . . . . 13 . . . . . . . . . 4 Kinetic 10 | . . . . 1 9 . . . . . . . . . . . . . . . . Secondary . | . . . . . . . . . . . . . . . . . . . . . . Self-Inflicted Damage 1198 | . . . . . 47 126 . . . 88 148 . 32 . 73 . . . . 289 395 Shots 38 | . . . . . 2 6 . . . 3 7 . 1 . 2 . . . . 5 12 Rammed 61 | . 7 7 . 4 2 . . . . . . . . . . . . . . . 41 Targets Rammed 101 | . 9 7 . 5 3 2 . . . . . . . . . . . . . . 75 Kicked 36 | . . . . . . 2 . . . . . . . . . . . . . . 34 Crushed 4 | . 2 . . 1 1 . . . . . . . . . . . . . . . . Highest Temperature 360 | . 66 78 . . 360 349 3 . . 54 139 270 248 . 26 225 276 251 209 247 229 Average Temperature 84 | . 23 27 . . 94 100 3 . . 21 30 85 80 . 5 68 116 123 104 50 117 Received Heat Transfer 4215 | . 327 51 . 12 504 586 90 12 . 207 798 180 393 . 42 48 249 9 27 502 178 Effects 5 | . . . . . 1 . . . . . . . 1 . . 1 1 1 . . . Energy Bleed 4 | . . . . . . . . . . . . . 1 . . 1 1 1 . . . Short Circuit 1 | . . . . . 1 . . . . . . . . . . . . . . . . Siege Activations . | . . . . . . . . . . . . . . . . . . . . . . Martial Activations . | . . . . . . . . . . . . . . . . . . . . . . Shielding Activations . | . . . . . . . . . . . . . . . . . . . . . . Robots Disrupted 1 | . . . . . . . . . . . 1 . . . . . . . . . . Combat Hostiles 1 | . . . . . . . . . . . 1 . . . . . . . . . . Robots Corrupted 19 | . . . . . . 3 . . . 1 15 . . . . . . . . . . Combat Hostiles 19 | . . . . . . 3 . . . 1 15 . . . . . . . . . . Parts Fried 42 | . . . . . . 5 . . . 2 34 . 1 . . . . . . . . Impact Corruptions 29 | . . . . . . 5 . . . . 23 . . . . . . . . . 1 Robots Melted . | . . . . . . . . . . . . . . . . . . . . . . Combat Hostiles . | . . . . . . . . . . . . . . . . . . . . . . Parts Melted 28 | . 1 . . . 11 10 . . . . 1 . . . 2 2 1 . . . . Heat Transferred 9963 | . 185 555 . 100 5086 2687 . . . . 350 . . . . . . 1000 . . . Parts Sabotaged . | . . . . . . . . . . . . . . . . . . . . . . Parts Stolen . | . . . . . . . . . . . . . . . . . . . . . . Parts Stripped . | . . . . . . . . . . . . . . . . . . . . . . Power Chain Reactions 1 | . . . . . . . . . . . 1 . . . . . . . . . . Alert | -11 -10 -10 -10 -9 -8 -8 -7 -7 -7 -6 -6 -6 -6 -6 -5 -5 -5 -5 -5 -5 -4 ------- Run | Yrd Mat Min Exi Min Mat Gar Fac Low Dat Pro Fac Low Low Zio Pro Fac Ext Cet Arc Hub Fac Maximum Alert Level 4 | . 1 . . . 1 4 2 . . . 3 . . . . 2 2 2 1 2 2 Low Security (%) 56 | 100 76 100 . 100 80 2 . . . . 66 . . . . 31 37 . 88 25 34 Level 1 19 | . 23 . . . 19 14 . . . . 10 . . . . 37 40 59 11 6 28 Level 2 18 | . . . . . . 29 100 . . . 8 . . . . 31 21 40 . 68 36 Level 3 4 | . . . . . . 33 . . . . 14 . . . . . . . . . . Level 4 1 | . . . . . . 19 . . . . . . . . . . . . . . . Level 5 . | . . . . . . . . . . . . . . . . . . . . . . High Security . | . . . . . . . . . . . . . . . . . . . . . . Max Security . | . . . . . . . . . . . . . . . . . . . . . . Peak Influence 1332 | . 244 88 . 77 293 1332 699 . . . 870 . . . . 573 652 460 247 586 605 Initial 699 | . . 61 . . . 176 699 . . . 49 . . . . 158 229 348 136 . 252 Average 244 | . 103 23 . 6 117 756 582 . . . 228 . . . . 290 279 391 71 364 308 Influence Increases 11616 | . 652 257 . 82 1205 1266 229 50 . 230 1512 130 475 . 648 1139 1077 392 301 1198 773 Destroy 0b10 Robot/C 6400 | . 320 180 . 40 740 780 120 40 . 160 760 100 400 . 480 660 480 160 80 540 360 Destroy 0b10 Robot/NC 500 | . 40 10 . 5 75 5 25 . . 10 70 10 5 . 10 45 30 10 45 55 50 Destroy Leader 1076 | . 88 40 . 10 186 30 32 10 . 30 182 20 40 . 30 152 54 . . 110 62 Allied During Kill 1061 | . . 9 . . 8 7 . . . . . . . . 68 25 336 170 125 313 . Successful Hack 205 | . 23 . . . 10 35 2 . . . 24 . . . . 30 59 8 . . 14 Select Force Hacks 60 | . 60 . . . . . . . . . . . . . . . . . . . . Disable Machine 585 | . 15 . . 15 75 45 . . . . 180 . . . . 30 30 . 45 75 75 Anti-Garrison Action 100 | . . . . . . 100 . . . . . . . . . . . . . . . Destroy Structure 699 | . 1 18 . 12 81 174 5 . . . 26 . . . . 32 28 44 6 60 212 Partial Spotted 30 | . . . . . 15 15 . . . . . . . . . . . . . . . Lose Combat Pursuer 900 | . 105 . . . 15 75 45 . . 30 270 . 30 . 60 165 60 . . 45 . Influence Decreases 11137 | . 495 409 5 81 934 206 985 428 198 151 743 859 464 130 395 923 922 674 643 682 810 Entered New Map 2822 | . . 96 5 . 1 96 633 214 198 . 30 315 23 130 . 95 240 276 206 . 264 Time Decay 6332 | . 465 313 . 81 600 . 342 214 . 151 543 494 371 . 305 628 562 238 337 332 356 Lost Part 780 | . 30 . . . 30 90 10 . . . 170 50 70 . 10 10 20 . . 100 190 Lost Ally 642 | . . . . . 42 20 . . . . . . . . 80 40 100 160 100 100 . Purge Threat 561 | . . . . . 261 . . . . . . . . . . 150 . . . 150 . Squads Dispatched 63 | . 4 . . 1 9 . 1 . . . 19 . 1 . 1 8 2 . . 12 5 Investigation 9 | . 3 . . 1 2 . . . . . . . . . . 1 2 . . . . Extermination 13 | . . . . . . . 1 . . . 5 . . . . 3 . . . 3 1 Reinforcement 19 | . 1 . . . 4 . . . . . 7 . . . . 1 . . . 3 3 Assault 7 | . . . . . . . . . . . 1 . 1 . 1 . . . . 4 . Garrison 15 | . . . . . 3 . . . . . 6 . . . . 3 . . . 2 1 Intercept . | . . . . . . . . . . . . . . . . . . . . . . Searches Triggered . | . . . . . . . . . . . . . . . . . . . . . . Construction Impeded 4 | . . . . . . . . . . . 3 . . . . . . . . . 1 Haulers Reinforced 3 | . . . . . . . . . . . 2 . . . . . . . . . 1 Active Scanning Responses . | . . . . . . . . . . . . . . . . . . . . . . Cargo Convoy Interrupts . | . . . . . . . . . . . . . . . . . . . . . . Stealth | -11 -10 -10 -10 -9 -8 -8 -7 -7 -7 -6 -6 -6 -6 -6 -5 -5 -5 -5 -5 -5 -4 --------- Run | Yrd Mat Min Exi Min Mat Gar Fac Low Dat Pro Fac Low Low Zio Pro Fac Ext Cet Arc Hub Fac Distress Signals 13 | . 1 . . . 3 . . . . . 1 . . . . 2 . 2 . 2 2 Communications Jammed . | . . . . . . . . . . . . . . . . . . . . . . Distress Signals . | . . . . . . . . . . . . . . . . . . . . . . Times Spotted 454 | . 34 11 . 1 56 39 10 3 4 10 58 5 22 . 25 50 32 8 6 54 26 Peak Tracking Total 16 | . 6 2 . 1 5 10 4 1 2 4 8 4 9 . 9 6 5 5 2 16 6 Tactical Retreats 36 | . 3 . . . 1 1 2 . 1 2 12 . 2 . 3 5 3 . . 1 . Traps | -11 -10 -10 -10 -9 -8 -8 -7 -7 -7 -6 -6 -6 -6 -6 -5 -5 -5 -5 -5 -5 -4 ------- Run | Yrd Mat Min Exi Min Mat Gar Fac Low Dat Pro Fac Low Low Zio Pro Fac Ext Cet Arc Hub Fac Traps Triggered 12 | . 3 . . . 2 5 . . . . . . . . . 2 . . . . . Indirectly . | . . . . . . . . . . . . . . . . . . . . . . Trap Hack Attempts . | . . . . . . . . . . . . . . . . . . . . . . Triggered . | . . . . . . . . . . . . . . . . . . . . . . Disarmed . | . . . . . . . . . . . . . . . . . . . . . . Reprogrammed . | . . . . . . . . . . . . . . . . . . . . . . Reused . | . . . . . . . . . . . . . . . . . . . . . . Traps Extracted . | . . . . . . . . . . . . . . . . . . . . . . Installed . | . . . . . . . . . . . . . . . . . . . . . . Triggered . | . . . . . . . . . . . . . . . . . . . . . . Most Traps Carried 7 | . . . . . . . . . . . . . 1 1 7 7 6 6 6 6 . Machines | -11 -10 -10 -10 -9 -8 -8 -7 -7 -7 -6 -6 -6 -6 -6 -5 -5 -5 -5 -5 -5 -4 ---------- Run | Yrd Mat Min Exi Min Mat Gar Fac Low Dat Pro Fac Low Low Zio Pro Fac Ext Cet Arc Hub Fac Machines Disabled 42 | . 1 1 . 1 5 3 . . 1 . 12 . . . 1 2 2 . 3 5 5 Max in Single Turn 6 | . 1 . . 1 1 1 . . 1 . 6 . . . 1 1 1 . 1 1 2 Garrison Access 4 | . . . . . . . . . . . 2 . . . . 1 . . . 1 . Network Hub 2 | . . . . . . . . . . . . . . . . . . . . 2 . Machines Repaired . | . . . . . . . . . . . . . . . . . . . . . . Machines Dismantled . | . . . . . . . . . . . . . . . . . . . . . . Machines Sabotaged . | . . . . . . . . . . . . . . . . . . . . . . Overloaded Fab Kills . | . . . . . . . . . . . . . . . . . . . . . . Hacking | -11 -10 -10 -10 -9 -8 -8 -7 -7 -7 -6 -6 -6 -6 -6 -5 -5 -5 -5 -5 -5 -4 --------- Run | Yrd Mat Min Exi Min Mat Gar Fac Low Dat Pro Fac Low Low Zio Pro Fac Ext Cet Arc Hub Fac Machines Accessed 76 | . 7 . 1 1 12 3 4 . 4 . 7 . . . . 11 17 1 . 5 3 Terminals 50 | . 5 . . . 8 3 2 . . . 3 . . . . 7 16 1 . 4 1 Fabricators . | . . . . . . . . . . . . . . . . . . . . . . Repair Stations 9 | . . . . . 2 . 1 . . . 2 . . . . 3 . . . . 1 Recycling Units 4 | . 2 . . . . . . . . . . . . . . . 1 . . . 1 Scanalyzers 2 | . . . . . 1 . 1 . . . . . . . . . . . . . . Garrison Access 5 | . . . . . 1 . . . . . 2 . . . . 1 . . . 1 . Total Hacks 223 | . 17 . 1 1 33 3 10 . 25 . 16 . . . . 43 49 3 . 14 8 Successful 112 | . 9 . 1 1 18 3 4 . 25 . 7 . . . . 23 16 1 . 2 2 Failed 111 | . 8 . . . 15 . 6 . . . 9 . . . . 20 33 2 . 12 6 Catastrophic 27 | . 1 . . . 1 . 2 . . . . . . . . 6 8 1 . 3 5 Database Lockouts . | . . . . . . . . . . . . . . . . . . . . . . Manual 57 | . 16 . . . 12 . 2 . . . 1 . . . . 11 12 1 . 2 . Terminals 133 | . 14 . . . 26 3 3 . . . 6 . . . . 20 42 3 . 13 3 Fabricators . | . . . . . . . . . . . . . . . . . . . . . . Repair Stations 40 | . . . . . 3 . 5 . . . 8 . . . . 22 . . . . 2 Recycling Units 13 | . 3 . . . . . . . . . . . . . . . 7 . . . 3 Scanalyzers 4 | . . . . . 2 . 2 . . . . . . . . . . . . . . Garrison Access 6 | . . . . . 2 . . . . . 2 . . . . 1 . . . 1 . Terminal Hacks 55 | . 1 . 1 1 5 3 . . 25 . . . . . . 3 13 1 . 1 1 Record 8 | . . . 1 . . . . . 7 . . . . . . . . . . . . Part Schematic 12 | . . . . . . . . . 11 . . . . . . . 1 . . . . Robot Schematic 5 | . 1 . . . . . . . 4 . . . . . . . . . . . . Prototype ID Bank 4 | . . . . . 1 . . . 3 . . . . . . . . . . . . Open Door 14 | . . . . 1 . 1 . . . . . . . . . 1 10 1 . . . Emergency Access Points 1 | . . . . . . 1 . . . . . . . . . . . . . . . Terminal Index 2 | . . . . . . . . . . . . . . . . 1 . . . . 1 Alert Level 1 | . . . . . . . . . . . . . . . . . 1 . . . . Unreport Threat 5 | . . . . . 3 . . . . . . . . . . 1 . . . 1 . Locate Traps 1 | . . . . . . . . . . . . . . . . . 1 . . . . Hauler Manifests 1 | . . . . . 1 . . . . . . . . . . . . . . . . Patrol Navigation 1 | . . . . . . 1 . . . . . . . . . . . . . . . Fabricator Hacks . | . . . . . . . . . . . . . . . . . . . . . . Repair Station Hacks 25 | . . . . . 1 . 2 . . . 5 . . . . 17 . . . . . Scan Component 16 | . . . . . 1 . 2 . . . 3 . . . . 10 . . . . . Repair 9 | . . . . . . . . . . . 2 . . . . 7 . . . . . Recycling Unit Hacks 1 | . . . . . . . . . . . . . . . . . . . . . 1 Retrieve Components 1 | . . . . . . . . . . . . . . . . . . . . . 1 Scanalyzer 4 | . . . . . 2 . 2 . . . . . . . . . . . . . . Insert Component 2 | . . . . . 1 . 1 . . . . . . . . . . . . . . Analyze 2 | . . . . . 1 . 1 . . . . . . . . . . . . . . Garrison Access Hacks 4 | . . . . . 1 . . . . . 2 . . . . 1 . . . . . Unlock Access 1 | . . . . . 1 . . . . . . . . . . . . . . . . Seal Access 3 | . . . . . . . . . . . 2 . . . . 1 . . . . . Unauthorized Hacks 23 | . 8 . . . 9 . . . . . . . . . . 2 3 . . 1 . Terminals 18 | . 6 . . . 8 . . . . . . . . . . 2 1 . . 1 . Botnet 5 | . 1 . . . 2 . . . . . . . . . . 1 1 . . . . Operators 2 | . . . . . . . . . . . . . . . . 1 . . . 1 . Skim 11 | . 5 . . . 6 . . . . . . . . . . . . . . . . Fabricators . | . . . . . . . . . . . . . . . . . . . . . . Repair Stations 1 | . . . . . 1 . . . . . . . . . . . . . . . . Patch 1 | . . . . . 1 . . . . . . . . . . . . . . . . Recycling Units 4 | . 2 . . . . . . . . . . . . . . . 2 . . . . Reject 1 | . . . . . . . . . . . . . . . . . 1 . . . . Mask 1 | . . . . . . . . . . . . . . . . . 1 . . . . Tunnel 2 | . 2 . . . . . . . . . . . . . . . . . . . . Scanalyzers . | . . . . . . . . . . . . . . . . . . . . . . Garrison Access . | . . . . . . . . . . . . . . . . . . . . . . Data Cores Recovered . | . . . . . . . . . . . . . . . . . . . . . . Used . | . . . . . . . . . . . . . . . . . . . . . . Hacking Detections 51 | . 6 . . . 10 1 4 . . . 5 . . . . 8 9 . . 5 3 Full Trace Events 3 | . . . . . . . . . . . . . . . . 1 2 . . . . Feedback Events . | . . . . . . . . . . . . . . . . . . . . . . Feedback Blocked . | . . . . . . . . . . . . . . . . . . . . . . Robot Schematics Acquired 9 | . 1 . . . . . . . 4 . . . . 4 . . . . . . . Robots Built . | . . . . . . . . . . . . . . . . . . . . . . Authchips . | . . . . . . . . . . . . . . . . . . . . . . Time . | . . . . . . . . . . . . . . . . . . . . . . Total Robot Build Rating . | . . . . . . . . . . . . . . . . . . . . . . Part Schematics Acquired 29 | . . . . . 1 . 1 . 11 . . . . 15 . . 1 . . . . Parts Built . | . . . . . . . . . . . . . . . . . . . . . . Authchips . | . . . . . . . . . . . . . . . . . . . . . . Time . | . . . . . . . . . . . . . . . . . . . . . . Total Part Build Rating . | . . . . . . . . . . . . . . . . . . . . . . Parts Repaired 8 | . . . . . . . . . . . 2 . . . . 6 . . . . . Time 538 | . . . . . . . . . . . 156 . . . . 382 . . . . . Parts Recycled . | . . . . . . . . . . . . . . . . . . . . . . Recycled Matter . | . . . . . . . . . . . . . . . . . . . . . . Retrieved Matter . | . . . . . . . . . . . . . . . . . . . . . . Retrieved Components 1 | . . . . . . . . . . . . . . . . . . . . . 1 Parts Scanalyzed 2 | . . . . . 1 . 1 . . . . . . . . . . . . . . Part Schematics Acquired 2 | . . . . . 1 . 1 . . . . . . . . . . . . . . Parts Damaged . | . . . . . . . . . . . . . . . . . . . . . . Bothacking | -11 -10 -10 -10 -9 -8 -8 -7 -7 -7 -6 -6 -6 -6 -6 -5 -5 -5 -5 -5 -5 -4 ------------ Run | Yrd Mat Min Exi Min Mat Gar Fac Low Dat Pro Fac Low Low Zio Pro Fac Ext Cet Arc Hub Fac Used RIF Installer . | . . . . . . . . . . . . . . . . . . . . . . Robots Hacked . | . . . . . . . . . . . . . . . . . . . . . . Non-combat . | . . . . . . . . . . . . . . . . . . . . . . Combat . | . . . . . . . . . . . . . . . . . . . . . . Robot Hacks Applied . | . . . . . . . . . . . . . . . . . . . . . . Relay Couplers Released 6 | . . . . . . . . . . . 2 . . . . 3 . . . 1 . Machine Destruction 3 | . . . . . . . . . . . 2 . . . . . . . . 1 . Programmers 3 | . . . . . . . . . . . . . . . . 3 . . . . . Fabnet Peak Effective % . | . . . . . . . . . . . . . . . . . . . . . . Robots Rewired 19 | . . . . . . 2 . . . . . . 2 . 2 . 13 . . . . Allies Hacked 3 | . . . . . . 1 . . . . . . . . . 1 . . . 1 . Hacks Repelled . | . . . . . . . . . . . . . . . . . . . . . . Allies | -11 -10 -10 -10 -9 -8 -8 -7 -7 -7 -6 -6 -6 -6 -6 -5 -5 -5 -5 -5 -5 -4 -------- Run | Yrd Mat Min Exi Min Mat Gar Fac Low Dat Pro Fac Low Low Zio Pro Fac Ext Cet Arc Hub Fac Total Allies 44 | . . 1 . 3 . 2 . . . . . . 2 3 2 . 26 5 . . . Largest Group 20 | . . 1 . 3 3 2 . . . . . . 2 5 5 2 20 20 17 10 . Highest-Rated Group 917 | . . 31 . 40 40 56 . . . . . . 62 141 141 79 664 917 917 546 . Highest-Rated Ally 159 | . . 31 . 16 16 31 . . . . . . 32 32 49 49 159 159 159 96 . Initial Warlord ECA Mod 25 | . . . . . . . 3 3 3 2 2 2 2 2 1 1 1 1 1 1 . Total Orders 2 | . . . . . . 1 . . . . . . . . . . . . . 1 . STAY 2 | . . . . . . 1 . . . . . . . . . . . . . 1 . Ally Attacks 424 | . . 14 . . 18 17 . . . . . . . . 35 15 135 57 43 90 . Total Damage 10605 | . . 210 . . 195 249 . . . . . . . . 1032 502 3001 1461 1071 2884 . Kills 68 | . . 4 . . 2 5 . . . . . . . . 10 5 15 7 3 17 . Allies Corrupted 1 | . . . . . . . . . . . . . . . . 1 . . . . . Allies Melted 1 | . . . . . . . . . . . . . . . 1 . . . . . . Intel | -11 -10 -10 -10 -9 -8 -8 -7 -7 -7 -6 -6 -6 -6 -6 -5 -5 -5 -5 -5 -5 -4 ------- Run | Yrd Mat Min Exi Min Mat Gar Fac Low Dat Pro Fac Low Low Zio Pro Fac Ext Cet Arc Hub Fac Active Infowar (turns) 7196 | . . . . . . . 771 450 213 948 551 . . 588 1345 1765 . . . . 565 Optics 4263 | . . . . . . . . . . . . . . 588 1345 1765 . . . . 565 Terrain 1 | . . . . . . . . . . . . . . . . 1 . . . . . Seismic 2940 | . . . . . . . 771 450 213 948 551 . . . . 7 . . . . . Robot Analysis Total . | . . . . . . . . . . . . . . . . . . . . . . Derelict Logs Recovered 9 | . . . . 2 . . . 2 . 1 . 1 1 1 1 . . . . . . Drone Launches . | . . . . . . . . . . . . . . . . . . . . . . Drone Recoveries . | . . . . . . . . . . . . . . . . . . . . . . Exploration | -11 -10 -10 -10 -9 -8 -8 -7 -7 -7 -6 -6 -6 -6 -6 -5 -5 -5 -5 -5 -5 -4 ------------- Run | Yrd Mat Min Exi Min Mat Gar Fac Low Dat Pro Fac Low Low Zio Pro Fac Ext Cet Arc Hub Fac Turns Passed 27654 | 61 1791 1032 406 1279 3140 1626 772 450 624 1059 2216 1307 1191 1936 1345 2160 1667 502 1438 844 808 Spaces Moved 13700 | 35 700 400 170 518 1459 796 560 420 340 755 1292 764 555 1167 766 892 784 183 225 399 520 Core 205 | 4 . . . . . . . . . . . . . . . . . . . 27 174 Treads 7955 | 31 700 400 170 518 495 251 . . . . . 701 300 1167 766 892 784 183 225 372 . Legs 3390 | . . . . . 91 545 409 . 209 755 1292 63 . . . . . . . . 26 Wheels 2150 | . . . . . 873 . 151 420 131 . . . 255 . . . . . . . 320 Hover . | . . . . . . . . . . . . . . . . . . . . . . Flight . | . . . . . . . . . . . . . . . . . . . . . . Fastest Speed 50 | 50 160 240 240 240 130 115 93 93 93 120 120 120 160 160 160 160 162 162 162 50 50 Average Speed 156 | 147 212 240 240 240 158 156 111 93 126 120 120 156 184 160 160 161 164 162 162 155 92 Slowest Speed 260 | 160 240 240 240 240 243 243 116 93 260 120 190 260 240 160 160 165 165 162 163 240 200 Overloaded Moves . | . . . . . . . . . . . . . . . . . . . . . . Propulsion Burnouts . | . . . . . . . . . . . . . . . . . . . . . . Robots Hopped . | . . . . . . . . . . . . . . . . . . . . . . Potential Cave-ins 1 | . . . . . . . . . . . . . 1 . . . . . . . . Cave-ins Triggered . | . . . . . . . . . . . . . . . . . . . . . . Exploration Rate (%) 63 | 3 98 54 56 98 91 83 15 61 80 89 25 81 71 84 85 26 81 66 88 48 8 Regions Visited 21 Branch Regions 14 Pre-discovered Areas 11 | . 3 . 1 2 . . . 1 1 1 . . . 1 1 . . . . . . Known Exits Taken 7 | . . . . . 1 . 1 . . 1 1 . . . . 1 1 . . 1 . Unknown Exits Taken 13 | 1 1 1 1 1 . . . 1 1 . . 1 1 1 1 . . 1 1 . . Scrap Searched 14 | . . . . 2 . . . 2 . 1 . 1 2 3 3 . . . . . . Spaces Dug 63 | . . . . . 11 10 5 . . 3 11 3 1 . . 15 . . . 4 . Terrain Destroyed 718 | . . 27 . 16 78 83 5 . . 38 23 3 159 . 97 15 1 6 1 17 149 Melee 40 | . . . . . 2 2 5 . . 3 11 3 1 . . 10 . . . 3 . Projectile 89 | . . . . 1 53 . . . . . . . . . . 5 1 6 1 3 19 AOE 589 | . . 27 . 15 23 81 . . . 35 12 . 158 . 97 . . . . 11 130 Terrain Rammed . | . . . . . . . . . . . . . . . . . . . . . . Walls Destroyed . | . . . . . . . . . . . . . . . . . . . . . . Machines Disabled . | . . . . . . . . . . . . . . . . . . . . . . Actions | -11 -10 -10 -10 -9 -8 -8 -7 -7 -7 -6 -6 -6 -6 -6 -5 -5 -5 -5 -5 -5 -4 --------- Run | Yrd Mat Min Exi Min Mat Gar Fac Low Dat Pro Fac Low Low Zio Pro Fac Ext Cet Arc Hub Fac Total 18656 | 42 843 438 169 546 2056 1032 694 475 499 877 1808 845 679 1235 850 1495 1133 362 1278 565 735 Wait 3004 | . 35 4 . 9 387 70 43 40 65 80 294 24 22 32 19 419 184 139 1007 79 52 Move 13679 | 34 699 399 169 517 1458 795 559 419 339 754 1291 763 554 1166 765 891 783 182 224 398 520 Hop . | . . . . . . . . . . . . . . . . . . . . . . Pick Up 175 | 2 7 9 . 6 20 14 17 2 7 2 14 4 20 7 4 12 5 6 8 3 6 Fast Attach 104 | 6 2 . . . 10 1 3 . 11 1 18 6 7 7 2 10 3 2 3 . 12 Attach 74 | . 2 . . . 7 8 4 . 1 . 14 3 3 4 1 4 2 . 4 4 13 Detach 28 | . . . . . 2 . 1 . 3 . 5 . 3 4 1 2 2 . 3 1 1 Swap 150 | . 6 4 . 2 11 17 9 1 6 10 12 2 8 6 7 17 10 9 3 9 1 Drop 162 | . 1 1 . 5 29 7 22 3 16 3 8 1 8 7 4 18 8 10 7 2 2 Fire 478 | . 82 14 . 2 127 75 . . . 13 29 . 29 . 14 5 1 14 8 12 53 Melee 576 | . . . . . 2 17 36 10 51 14 123 42 22 2 16 117 56 . 11 57 . Ram 42 | . . . . . 1 . . . . . . . . . . . . . . . 41 Kick 36 | . . . . . . 2 . . . . . . . . . . . . . . 34 Crush 23 | . 9 7 . 5 2 . . . . . . . . . . . . . . . . Escape Stasis 20 | . . . . . . 20 . . . . . . . . . . . . . . . Rewire 105 | . . . . . . 6 . . . . . . 3 . 17 . 79 . . . . Trap . | . . . . . . . . . . . . . . . . . . . . . . Miscellaneous . | . . . . . . . . . . . . . . . . . . . . . . Route ------- -11/Scrapyard -10/Materials (discovered 5 exits: *Mat x3 / [*Min] / Sub) -10/Mines (discovered 3 exits: *Mat x2 / *Exi) -10/Exiles -9/Mines (discovered 2 exits: *Mat x2) -8/Materials (discovered 4 exits: *Fac x3 / Gar) -8/Garrison (discovered 3 exits: *Fac x3) -7/Factory (discovered 5 exits: Fac x2 / Sto / *Low x2) -7/Lower Caves (discovered 2 exits: *Low / *Dat) -7/Data Miner -6/Proximity Caves -6/Factory (discovered 2 exits: *Fac / *Low) -6/Lower Caves -6/Lower Caves -6/Zion -5/Proximity Caves -5/Factory (discovered 3 exits: Fac / [*Upp] / *Ext) -5/Extension (discovered 2 exits: *Fac / *Cet) -5/Cetus (discovered 2 exits: *Fac / [*Arc]) -5/Archives (discovered 3 exits: *Fac / *Hub x2) -5/Hub_04(d) -4/Factory History --------- Turn | Location | Event 2 | -11/Scrapyard | Met Revision 17 3 | -11/Scrapyard | Discovered new exit (range 15) 62 | -11/Scrapyard | Entered Materials 319 | -10/Materials | Build established: Mutant 477 | -10/Materials | Discovered new exit (range 6) 853 | -10/Materials | Discovered new exit (range 9) 1181 | -10/Materials | Core integrity fell below 50% 1236 | -10/Materials | Lost 3 parts (1p1n1u) 1420 | -10/Materials | Discovered new exit (range 10) 1528 | -10/Materials | Learned Recycling recycling unit intel 1557 | -10/Materials | Identified exit to Subcaves 1587 | -10/Materials | Learned location of 2 exits from Subcaves 1588 | -10/Materials | Learned location of 1 exit from Storage 1589 | -10/Materials | Learned Storage stockpile data 1600 | -10/Materials | Learned location of Recycling (-7) 1785 | -10/Materials | Discovered new exit (range 6) 1853 | -10/Materials | Entered Mines 1854 | -10/Mines | Identified exit to Materials 2078 | -10/Mines | Escorted by a lone wolf Derelict 2185 | -10/Mines | A weapon hastily lodged in a ceiling crevice suddenly fell to the ground 2466 | -10/Mines | Assembled infested the area 2471 | -10/Mines | Assisted by a Guerilla fighting off Assembled 2472 | -10/Mines | Found a hidden stash of uninstalled traps 2611 | -10/Mines | Joined a pair of Derelicts in attacking an 0b10 outpost 2873 | -10/Mines | Deemed a non-threat by the Exiles lab entrance 2876 | -10/Mines | Discovered new exit (range 5) 2885 | -10/Mines | Entered Exiles 2885 | -10/Exiles | Accompanied by 1 ally 2945 | -10/Exiles | Met 8R-AWN 2984 | -10/Exiles | Met EX-HEX 3073 | -10/Exiles | Met EX-DEC 3111 | -10/Exiles | Learned location of Zion (-6) 3272 | -10/Exiles | Discovered new exit (range 10) 3291 | -10/Exiles | Entered Mines 3324 | -9/Mines | Met a Derelict shopkeep closing up shop 3768 | -9/Mines | Discovered new exit (range 8) 3863 | -9/Mines | Learned Materials terminal intel 3899 | -9/Mines | Found a Scrap Suit stashed away for nefarious purposes 4296 | -9/Mines | Discovered new exit (range 11) 4318 | -9/Mines | Assisted by bots powering up and referring to "LRC-V3" 4515 | -9/Mines | Learned location of Storage (-7) 4570 | -9/Mines | Entered Materials 4570 | -8/Materials | Accompanied by 3 allies 4570 | -8/Materials | Evolved 4 slots: Propulsion x2, Utility x2 4571 | -8/Materials | Loaded intel: 12 terminal locations 4781 | -8/Materials | Lost 3 allies 5389 | -8/Materials | Discovered new exit (range 3) 5564 | -8/Materials | Discovered new exit (range 5) 5698 | -8/Materials | Learned location of 3 exits from Factory 5786 | -8/Materials | Learned 4 Lower Caves zone layouts 5815 | -8/Materials | Identified exit to Factory 5836 | -8/Materials | Learned location of 1 exit from Extension 5846 | -8/Materials | Learned Factory stockpile data 5866 | -8/Materials | Learned Factory trap positions 5898 | -8/Materials | Learned Storage emergency access door positions 6457 | -8/Materials | Garrison activated, responded to threat 7287 | -8/Materials | Identified exit to Garrison 7556 | -8/Materials | Build established: Scavenger-Mutant 7710 | -8/Materials | Entered Garrison 7742 | -8/Garrison | Triggered checkpoint 7968 | -8/Garrison | Triggered checkpoint 7987 | -8/Garrison | Triggered checkpoint 8223 | -8/Garrison | Discovered exit to Factory (range 11) 8448 | -8/Garrison | Triggered checkpoint 8601 | -8/Garrison | Core integrity fell below 50% 8735 | -8/Garrison | Discovered exit to Factory (range 11) 8904 | -8/Garrison | Triggered checkpoint 8977 | -8/Garrison | Lost 3 parts (1p1u1w) 9188 | -8/Garrison | Discovered exit to Factory (range 12) 9222 | -8/Garrison | Triggered checkpoint 9336 | -8/Garrison | Entered Factory 9336 | -7/Factory | Evolved 2 slots: Propulsion x1, Utility x1 9337 | -7/Factory | Identified exit to Storage 9338 | -7/Factory | Identified exit to Lower Caves 9338 | -7/Factory | Identified exit to Factory 9339 | -7/Factory | Loaded intel: 81 trap records 9773 | -7/Factory | Build established: Scavenger-Gladiator 9959 | -7/Factory | Discovered exit to Lower Caves (range 9) 10108 | -7/Factory | Entered Lower Caves 10128 | -7/Lower Caves | Met a Warlord Commander 10129 | -7/Lower Caves | Learned location of Warlord (-5) 10130 | -7/Lower Caves | Warlord Commander delivered Encrypted Comm Array 10183 | -7/Lower Caves | Build established: Gladiator 10186 | -7/Lower Caves | Identified exit to Lower Caves 10203 | -7/Lower Caves | Encountered a Warlord checkpoint 10217 | -7/Lower Caves | Attracted the attention of an 0b10 checkpoint 10521 | -7/Lower Caves | A Derelict revealed a hidden shortcut to meet someone special 10522 | -7/Lower Caves | Learned Factory stockpile data 10558 | -7/Lower Caves | Entered Data Miner 10558 | -7/Data Miner | Discovered new exit (range 7) 10576 | -7/Data Miner | Met Data Miner 10599 | -7/Data Miner | Learned location of Section 7 (-2) 10599 | -7/Data Miner | Acquired the access code to Warlord's prototype stash 10608 | -7/Data Miner | Received God Mode back door access code from Data Miner 10616 | -7/Data Miner | Data Conduit disabled 10729 | -7/Data Miner | Found Prototype Device 10729 | -7/Data Miner | Identified Exp. Thermal Shield 11182 | -7/Data Miner | Entered Proximity Caves 11432 | -6/Proximity Caves | Attracted the attention of an 0b10 checkpoint 11538 | -6/Proximity Caves | Build established: Scavenger-Gladiator 11736 | -6/Proximity Caves | Received a Behemoth hack from an annoying Tinkerer 12028 | -6/Proximity Caves | Spotted B-75 Beast 12214 | -6/Proximity Caves | Discovered exit to Factory (range 16) 12239 | -6/Proximity Caves | System corruption reached 10% 12241 | -6/Proximity Caves | Entered Factory 12241 | -6/Factory | Evolved 2 slots: Power x1, Utility x1 12311 | -6/Factory | Discovered new exit (range 12) 12335 | -6/Factory | Garrison activated, responded to threat 12566 | -6/Factory | Discovered new exit (range 15) 12879 | -6/Factory | Repaired Broken Enh. Flexi-carbon Leg 13172 | -6/Factory | Repaired Enh. Flexi-carbon Leg? 13390 | -6/Factory | Identified exit to Lower Caves 13544 | -6/Factory | System corruption reached 10% 13813 | -6/Factory | Lost 8 parts (3p1n4u) 13991 | -6/Factory | First assault squad dispatched 14041 | -6/Factory | System corruption reached 30% 14184 | -6/Factory | Garrison activated, responded to threat 14457 | -6/Factory | Entered Lower Caves 14511 | -6/Lower Caves | Spotted B-75 Beast 14578 | -6/Lower Caves | Destroyed B-75 Beast 14605 | -6/Lower Caves | Lost 5 parts (2p3n) 14772 | -6/Lower Caves | Learned Factory emergency access door positions 14806 | -6/Lower Caves | Build established: Hacker-Gladiator 15082 | -6/Lower Caves | Discovered new exit (range 14) 15764 | -6/Lower Caves | Entered another Lower Caves area 15960 | -6/Lower Caves | Core integrity fell below 50% 16481 | -6/Lower Caves | Spotted B-75 Beast 16558 | -6/Lower Caves | Destroyed B-75 Beast 16750 | -6/Lower Caves | Attracted the attention of an 0b10 outpost 16785 | -6/Lower Caves | Discovered new exit (range 15) 16815 | -6/Lower Caves | Destroyed 11 combat bots 16823 | -6/Lower Caves | Lost 4 parts (1p3u) 16955 | -6/Lower Caves | Entered Zion 16955 | -6/Zion | Accompanied by 2 allies 16985 | -6/Zion | Given the Hacking Drone Bay 16989 | -6/Zion | Found Prototype Device 17014 | -6/Zion | System corruption cleaned by Quarantine Array 17085 | -6/Zion | Build established: Scavenger-Gladiator 17105 | -6/Zion | Discovered new exit (range 12) 17417 | -6/Zion | Identified Hacking Drone Bay 17693 | -6/Zion | Gained Derelict followers 17741 | -6/Zion | Found CR-A16's Pointy Stick 17835 | -6/Zion | Learned location of Armory (-3) 17912 | -6/Zion | Given A8's code to call for help 18193 | -6/Zion | Learned location of 1 exit from Factory 18307 | -6/Zion | Found Prototype Processor 18307 | -6/Zion | Identified Exp. Core Analyzer 18311 | -6/Zion | Found Prototype Processor 18311 | -6/Zion | Identified Exp. Signal Interpreter 18318 | -6/Zion | Found Prototype Processor 18318 | -6/Zion | Identified Exp. Target Analyzer 18345 | -6/Zion | Found Exp. Core Analyzer 18355 | -6/Zion | Found Prototype Hackware 18372 | -6/Zion | Found Exp. Signal Interpreter 18496 | -6/Zion | Visited the Megawrench Repair Shop 18496 | -6/Zion | Megawrench repaired 11 parts 18600 | -6/Zion | Build established: Hacker-Mutant 18891 | -6/Zion | Entered Proximity Caves 18891 | -5/Proximity Caves | Accompanied by 5 allies 18900 | -5/Proximity Caves | Build established: Hacker-Gladiator 19459 | -5/Proximity Caves | Ambushed by research squad 19703 | -5/Proximity Caves | Build established: Trapper-Gladiator 19795 | -5/Proximity Caves | Attracted the attention of an 0b10 outpost 19823 | -5/Proximity Caves | Destroyed 7 combat bots 20102 | -5/Proximity Caves | Discovered new exit (range 3) 20236 | -5/Proximity Caves | Entered Factory 20236 | -5/Factory | Accompanied by 2 allies 20236 | -5/Factory | Evolved 2 slots: Utility x1, Weapon x1 20236 | -5/Factory | Identified Exp. System Shield 20237 | -5/Factory | Identified exit to Extension 20238 | -5/Factory | Identified exit to Factory 20515 | -5/Factory | Found Prototype Launcher 20515 | -5/Factory | Identified Mni. Smartbomb Launcher 20551 | -5/Factory | Build established: Hacker-Gladiator 20556 | -5/Factory | Garrison activated, responded to threat 20953 | -5/Factory | Repaired Phasing Sabre 20999 | -5/Factory | Repaired Microactuators 21056 | -5/Factory | Repaired Remote Force Field 21240 | -5/Factory | Discovered new exit (range 22) 21462 | -5/Factory | Repaired Imp. Medium Treads? 21480 | -5/Factory | System corruption reached 10% 21576 | -5/Factory | Repaired Remote Force Field 22164 | -5/Factory | Repaired Broken Imp. Medium Treads 22396 | -5/Factory | Entered Extension 22397 | -5/Extension | Identified exit to Cetus 23041 | -5/Extension | Rescued a captive Derelict 23085 | -5/Extension | Rescued a captive Derelict 23086 | -5/Extension | Rescued a captive Derelict 23394 | -5/Extension | Spotted B-75 Beast 23409 | -5/Extension | Spotted B-75 Beast 23415 | -5/Extension | Allies destroyed B-75 Beast 23429 | -5/Extension | Build established: Commander-Gladiator 23429 | -5/Extension | Revealed the true nature of CR-A16's Pointy Stick 23430 | -5/Extension | Destroyed B-75 Beast 23487 | -5/Extension | Rescued a captive Derelict 23606 | -5/Extension | Rescued A7 23629 | -5/Extension | Lost 3 allies 23665 | -5/Extension | Rescued a captive Derelict 23726 | -5/Extension | Rescued a captive Derelict 23827 | -5/Extension | Rescued a captive Derelict 23828 | -5/Extension | Rescued a captive Derelict 23852 | -5/Extension | Rescued a captive Derelict 23868 | -5/Extension | Rescued a captive Derelict 23870 | -5/Extension | Rescued a captive Derelict 23876 | -5/Extension | Rescued a captive Derelict 23880 | -5/Extension | Rescued a captive Derelict 23958 | -5/Extension | Discovered exit to Factory (range 10) 24063 | -5/Extension | Entered Cetus 24063 | -5/Cetus | Accompanied by 20 allies (A7) 24068 | -5/Cetus | Acquired a Cetus Manufacturing Module code from A7 24089 | -5/Cetus | Spotted Cetus Guard 24089 | -5/Cetus | Spotted Cetus Guard 24094 | -5/Cetus | Allies destroyed Cetus Guard 24100 | -5/Cetus | Spotted Cetus Guard 24100 | -5/Cetus | Destroyed Cetus Guard 24119 | -5/Cetus | Allies destroyed Cetus Guard 24141 | -5/Cetus | Lost 5 allies 24198 | -5/Cetus | Started Cetus Manufacturing Module 24210 | -5/Cetus | Escorted A7 to Cetus Mainframe 24223 | -5/Cetus | Manufactured an Enhanced Grunt 24232 | -5/Cetus | Discovered new exit (range 15) 24248 | -5/Cetus | Manufactured an Enhanced Grunt 24273 | -5/Cetus | Manufactured an Enhanced Grunt 24287 | -5/Cetus | Spotted Cetus Guard 24287 | -5/Cetus | Spotted Cetus Guard 24287 | -5/Cetus | Allies destroyed Cetus Guard 24290 | -5/Cetus | Spotted Cetus Guard 24294 | -5/Cetus | Spotted Cetus Guard 24295 | -5/Cetus | Destroyed Cetus Guard 24298 | -5/Cetus | Manufactured an Enhanced Grunt 24309 | -5/Cetus | Allies destroyed Cetus Guard 24310 | -5/Cetus | Allies destroyed Cetus Guard 24318 | -5/Cetus | Discovered exit to Factory (range 16) 24323 | -5/Cetus | Manufactured an Enhanced Grunt 24328 | -5/Cetus | Met Revision 17 24339 | -5/Cetus | Lost 3 allies 24565 | -5/Cetus | Entered Archives 24565 | -5/Archives | Accompanied by 17 allies (A7) 24570 | -5/Archives | Received a hacking code to weaken MAIN.C 24631 | -5/Archives | Lost 6 allies 24633 | -5/Archives | Discovered exit to Factory (range 16) 24764 | -5/Archives | Discovered new exit (range 16) 24803 | -5/Archives | Discovered new exit (range 15) 26003 | -5/Archives | Entered Hub_04(d) 26003 | -5/Hub_04(d) | Accompanied by 10 allies 26169 | -5/Hub_04(d) | Garrison activated, responded to threat 26341 | -5/Hub_04(d) | Spotted B-75 Beast 26370 | -5/Hub_04(d) | Destroyed B-75 Beast 26435 | -5/Hub_04(d) | Discovered exit to Factory (range 15) 26603 | -5/Hub_04(d) | First assault squad dispatched 26633 | -5/Hub_04(d) | Lost 3 allies 26737 | -5/Hub_04(d) | Network Hub disabled 26755 | -5/Hub_04(d) | Garrison activated, responded to threat 26783 | -5/Hub_04(d) | Build established: Scavenger-Gladiator 26785 | -5/Hub_04(d) | Network Hub disabled 26811 | -5/Hub_04(d) | Core integrity fell below 50% 26812 | -5/Hub_04(d) | Spotted Lightning 26812 | -5/Hub_04(d) | Spotted Lightning 26812 | -5/Hub_04(d) | Spotted Lightning 26832 | -5/Hub_04(d) | Released all parts (6) 26838 | -5/Hub_04(d) | Core integrity fell below 20% 26842 | -5/Hub_04(d) | Found Corrupted Prototype Launcher 26847 | -5/Hub_04(d) | Entered Factory 26847 | -4/Factory | Evolved 2 slots: Propulsion x1, Utility x1 26862 | -4/Factory | Lost 10 parts (1p3n4u2w) 27314 | -4/Factory | Garrison activated, responded to threat 27317 | -4/Factory | Build established: Scavenger-Mutant 27349 | -4/Factory | Identified Scatter Rocket Array 27350 | -4/Factory | System corruption reached 10% 27556 | -4/Factory | Lost 11 parts (1p3n3u4w) 27567 | -4/Factory | Core integrity fell below 50% 27626 | -4/Factory | Core integrity fell below 20% 27655 | -4/Factory | Destroyed by X-82 Rainmaker with Heavy Flak Cannon Last Messages --------------- 27641_ Slug penetrates Wall. 27641_ Slammed into H-77 Assassin. 27642_ Med. Storage Unit destroyed. 27642_ Slammed into H-77 Assassin. 27642_ Destabilizing: Core damaged (-34). 27643_ X-82 Rainmaker knocked back. 27643_ H-77 Assassin destroyed. 27643_ X-82 Rainmaker knocked back. 27643_ K-01 Serf collects debris. 27645_ GT EX#MKYRP%CMZ 3&P4OY2VOEC 27645_ U-05 Engineer lays Concrete. 27647_ Knocked back. 27647_ U-05 Engineer lays Concrete. 27650_ Knocked back. 27650_ U-05 Engineer lays Concrete. 27652_ X-82 Rainmaker knocked back. 27653_ U-05 Engineer lays Concrete. 27653_ Knocked back. 27654_ U-05 Engineer lays Concrete. 27655_ Knocked back. Map ----- +----------------------------------------------------+ | ?????????????????????????????????????????????????? | | ???????????????????????????????????????????####### | | ???????????????????????????????????????????# | | ???????????????????????????????????????????# | | ???????????????????????????????????????????# | | ???????????????????????????????????????????# """ " | | ???????????????????????????????????????????# """ " | | ???????????????????????????????????????????# """ " | | ???????????????????????????????????????????# | | ???????????????????????????????????????????# """ " | | ???????????????????????????????????????????# """ " | | ??????????????????????????????????######???# """ " | | ?????????????????###########??#??? #???# | | ????????????????## ##?# """"" #???# | | ???????????????## ?# """"" ########### | | ####??????????## # ## """ =# | | #??????????# ## # # | | "" #?????????## ## # """"" # | | "" ########### ## """"" # | | R" ## # # ## # ??""" # | | "" # #???? # ##### | | " # # #### ## #######+### # | | # ## # # | | ## # | | ## u # | | ## # @ # | | # A % # = | | ## # ################# | | ########/### ## # # =%= #???????# | | # *[ #???????# | | #???????# | | % x #???????# | | "" """ #???????# | | """"""""" #???????##### | | """"""""" %# # #???????????? | | """"""""" ##### # #???????????? | | """"""""" #?# #???????????? | | """" """" ####### #???????????? | | #?# # #???????????? | | """" """"""""" #?# # #???????????? | | """" """"""""" #? ###############???????????? | | ?""" """"""""" ###??????????????????????????? | | ??"" """""""" #????????????????????????????? | | ???" """""""" ??????????????????????????? | | ???" """"""""" ?????????????????????????? | | ??????? ???????????????????????? | | ??????????? ??????????????????????? | | ?????????? ????????????????????? | | ??????????###+##############+#???????????????????? | | ?????????????????????????????????????????????????? | +----------------------------------------------------+ Best States ------------- Heat Dissipation 81 Energy Generation 51 Energy Capacity 900 Matter Stores 300 Matter Capacity 300 Sight Range 23 Terrain Scan Range 16 Terrain Scan Density 10 Base Temperature (-) 200 Armor Coverage 825 Resistance: TH 30 Melee Speed Boost 50 Evasion (%) 55 Melee Accuracy 6 Target Analysis 10 Core Analysis 8 Recoil Reduction 5 Particle Charging 25 Offensive Hacking 22 Defensive Hacking 16 Authchip Count 1 Trap Extractor Capacity 6 Item Schematics ----------------- Beam Cannon | -8/Materials | Scanalyzed Microactuators | -7/Factory | Scanalyzed Combat Drone Bay | -7/Data Miner | Free Lgt. Regenerative Plating | -7/Data Miner | Free Biomechanical Wings | -7/Data Miner | Free Gravity Neutralizer | -7/Data Miner | Free Imp. Heavy Laser | -7/Data Miner | Free Gyrokinetic Inverter | -7/Data Miner | Free Imp. Recalibrator | -7/Data Miner | Free Imp. Plasma Cutter | -7/Data Miner | Free Adv. Recoil Stabilizer | -7/Data Miner | Free Lrn. Proton Cannon | -7/Data Miner | Free Quantum Capacitor | -7/Data Miner | Free Imp. Coolant Injector | -6/Zion | Archive Adv. Heat Sink | -6/Zion | Archive Imp. Force Field | -6/Zion | Archive Dispersion Rifle | -6/Zion | Archive Drone Bay | -6/Zion | Archive Lrn. Tractor Beam | -6/Zion | Archive Power Amplifier | -6/Zion | Archive Mni. Drone Bay | -6/Zion | Archive Thermal Shield | -6/Zion | Archive Imp. Transmission Jammer | -6/Zion | Archive Imp. Target Analyzer | -6/Zion | Archive Adv. Shield Generator | -6/Zion | Archive Phase Shifter | -6/Zion | Archive Proton Cannon | -6/Zion | Archive Tesla Rifle | -6/Zion | Archive Launcher Loader | -5/Extension | Hacked Robot Schematics ------------------ M-13 Machinist | -10/Materials | Hacked A-15 Conveyor | -7/Data Miner | Free O-24 Administrator | -7/Data Miner | Free S-27 Virus | -7/Data Miner | Free G-47 Trooper | -7/Data Miner | Free A-02 Transporter | -6/Zion | Archive L-61 Swordsman | -6/Zion | Archive M-22 Extractor | -6/Zion | Archive R-06 Scavenger | -6/Zion | Archive Fabricated ------------ Nothing Repaired ---------- Enh. Flexi-carbon Leg | 23% | -6/Factory | Broken Enh. Flexi-carbon Leg | 35% | -6/Factory Phasing Sabre | 30% | -5/Factory Microactuators | 50% | -5/Factory Remote Force Field | 64% | -5/Factory Imp. Medium Treads | 31% | -5/Factory Remote Force Field | 2% | -5/Factory Imp. Medium Treads | 6% | -5/Factory | Broken Alien Tech Used ----------------- None Achievements -------------- None Challenges ------------ None Game ------ Seed ReactionCoolantBank Manual? 0 Play Time 02:30:25 Cumulative 754.0 hours Start 2025.09.24 @ 15:19:27 End 2025.09.28 @ 09:31:23 Sessions 11 Manual Loads 0 Difficulty Rogue Special Mode None Game No. 386 Rogue 386 Adventurer 0 Explorer 0 Win Type - Total 61 Types 41/4/5/2/1/1/3/2/1/1 Lore% 92 Gallery% 86 Achievement% 91 Wizard Run 0 Options --------- Layout 0 ASCII 0 Keyboard 1 Movement Numpad Keybinds 0 Fullscreen 2 Font 18/SmallcapsGlow Map View 76x50 Zoom Use 0% Tactical HUD 1 Map Filters NONE Filters NONE Steam 1 RUN: 1044dfb1-53db-48c0-9f5b-5dc4cf5b35ef